bitfinex/quotes_SOLUSD_20250508
["timestamp","ask_amount","ask_price","bid_price","bid_amount"]
[1746673268778,10.96560902,149.97,149.94,26.0]
[1746673268976,10.96560902,149.96,149.93,32.66964274]
[1746673269170,1.603,149.95,149.84,1.5042]
[1746673269375,1.603,149.95,149.87,10.96560902]
[1746673269570,10.96560902,149.92,149.88,10.96560902]
[1746673269775,1.603,149.95,149.89,10.96560902]
[1746673269997,10.96560902,149.94,149.89,10.96560902]
[1746673270185,10.96560902,149.93,149.88,10.96560902]
[1746673270391,10.96560902,149.91,149.86,10.96560902]
[1746673270901,10.96560902,149.9,149.85,6.67334]
[1746673271069,54.63700582,149.94,149.86,10.96560902]
[1746673271274,25.02174794,149.93,149.87,10.96560902]
[1746673271475,10.96560902,149.92,149.88,10.96560902]
[1746673271695,17.56013683,149.91,149.87,17.56013683]
[1746673271903,17.56013683,149.91,149.86,17.56013683]
[1746673272105,17.56013683,149.9,149.85,6.67334]
[1746673272397,17.56013683,149.89,149.85,6.67334]
[1746673272573,0.14216157,149.92,149.85,24.23347683]
[1746673272904,17.56013683,149.9,149.85,24.23347683]
[1746673273200,17.56013683,149.89,149.85,24.23347683]
[1746673273371,17.56013683,149.89,149.85,6.67334]
[1746673273570,17.56013683,149.88,149.85,6.67334]
[1746673274296,17.56013683,149.87,149.84,6.67378537]
[1746673275786,17.56013683,149.87,149.83,32.6742238]
[1746673276510,17.56013683,149.87,149.83,6.6742238]
[1746673276988,17.56013683,149.85,149.81,6.67512182]
[1746673277307,31.6942626,149.87,149.81,24.23525865]
[1746673277504,17.56013683,149.86,149.81,24.23525865]
[1746673277709,25.02174794,149.87,149.82,17.56013683]
[1746673277909,25.02174794,149.87,149.83,17.56013683]
[1746673278207,42.58188477,149.87,149.83,17.56013683]
[1746673278544,42.58188477,149.87,149.82,24.23466554]
[1746673278691,42.58188477,149.87,149.82,6.67452871]
[1746673278880,25.02174794,149.87,149.84,17.56013683]
[1746673279081,25.02174794,149.87,149.85,17.56013683]
[1746673279304,26.60994794,149.93,149.86,17.56013683]
[1746673279513,25.02174794,149.93,149.9,17.56013683]
[1746673279896,25.02174794,149.96,149.92,17.56013683]
[1746673280292,49.25036335,149.96,149.91,17.56013683]
[1746673280498,49.25036335,149.96,149.92,17.56013683]
[1746673280711,25.02174794,149.96,149.93,17.56013683]
[1746673281307,25.02174794,149.96,149.94,17.56013683]
[1746673281805,25.02174794,149.96,149.93,17.56013683]
[1746673282138,25.02174794,149.96,149.9,6.67086869]
[1746673282340,17.56013683,149.95,149.91,17.56013683]
[1746673282848,24.22909086,149.95,149.9,17.56013683]
[1746673283342,17.56013683,149.94,149.89,24.23169597]
[1746673284517,17.56013683,149.94,149.9,17.56013683]
[1746673284741,17.56013683,149.94,149.89,6.67155914]
[1746673284918,17.56013683,149.94,149.89,24.23169597]
[1746673285118,17.56013683,149.94,149.9,17.56013683]
[1746673285847,17.56013683,149.95,149.9,17.56013683]
[1746673286335,17.56013683,149.95,149.9,24.23101873]
[1746673286717,17.56013683,149.94,149.9,24.23101873]
[1746673287855,17.56013683,149.94,149.87,26.0]
[1746673287856,17.56013683,149.91,149.87,26.0]
[1746673288043,17.56013683,149.91,149.87,43.56013683]
[1746673288241,17.56013683,149.9,149.86,24.23298663]
[1746673288563,17.56013683,149.9,149.85,24.23332063]
[1746673288954,17.56013683,149.89,149.85,24.23332063]
[1746673289928,17.56013683,149.89,149.85,6.6731838]
[1746673290118,17.56013683,149.9,149.85,24.23332063]
[1746673290839,17.56013683,149.89,149.85,24.23332063]
[1746673291648,17.56013683,149.88,149.84,6.67373526]
[1746673291844,17.56013683,149.88,149.84,24.23387209]
[1746673292361,17.56013683,149.87,149.83,50.23426698]
[1746673292652,17.56013683,149.87,149.83,32.67413015]
[1746673292856,17.56013683,149.87,149.83,50.23426698]
[1746673293227,25.02174794,149.89,149.81,1.6056]
[1746673293431,17.56013683,149.85,149.78,6.6764588]
[1746673293733,42.58188477,149.87,149.82,17.56013683]
[1746673293935,42.58188477,149.87,149.8,17.56013683]
[1746673294237,42.58188477,149.87,149.83,17.56013683]
[1746673294638,25.02174794,149.87,149.84,17.56013683]
[1746673295234,42.58188477,149.87,149.83,24.23413429]
[1746673295942,17.56013683,149.87,149.83,6.67399746]
[1746673296144,17.56013683,149.86,149.8,6.67556742]
[1746673296332,17.56013683,149.86,149.81,17.56013683]
[1746673296645,15.06013683,149.85,149.81,17.56013683]
[1746673296940,15.06013683,149.85,149.81,24.23512851]
[1746673298549,17.56013683,149.86,149.82,17.56013683]
[1746673298733,8.23683289,149.88,149.83,17.56013683]
[1746673298933,8.23683289,149.88,149.84,17.56013683]
[1746673299239,19.12483683,149.88,149.84,17.56013683]
[1746673299437,25.79687558,149.88,149.84,17.56013683]
[1746673299742,19.12483683,149.88,149.84,17.56013683]
[1746673299944,19.12483683,149.88,149.84,24.23390893]
[1746673300140,25.79695611,149.88,149.84,17.56013683]
[1746673300340,17.56013683,149.87,149.83,17.56013683]
[1746673300648,17.56013683,149.86,149.82,17.56013683]
[1746673301221,24.23320223,149.86,149.81,24.23525865]
[1746673301442,17.56013683,149.85,149.81,17.56013683]
[1746673302041,6.67261646,149.87,149.82,17.56013683]
[1746673302226,17.56013683,149.87,149.82,17.56013683]
[1746673302542,17.56013683,149.87,149.83,17.56013683]
[1746673302946,19.12483683,149.88,149.83,24.23431938]
[1746673303118,49.25361892,149.89,149.83,6.67418255]
[1746673303324,17.56013683,149.88,149.84,17.56013683]
[1746673304048,17.56013683,149.88,149.81,26.0]
[1746673304247,17.56013683,149.87,149.83,17.56013683]
[1746673304547,24.23216678,149.88,149.83,17.56013683]
[1746673304933,17.56013683,149.87,149.82,17.56013683]
[1746673305330,17.56013683,149.87,149.83,17.56013683]
[1746673305547,24.23216678,149.88,149.83,17.56013683]
[1746673306341,6.67202995,149.88,149.83,24.23422062]
[1746673306648,25.02174794,149.89,149.85,17.56013683]
[1746673306828,49.25347267,149.89,149.85,17.56013683]
[1746673307141,17.56013683,149.87,149.83,17.56013683]
[1746673307649,17.56013683,149.88,149.83,17.56013683]
[1746673308342,17.56013683,149.88,149.84,17.56013683]
[1746673308543,24.23220097,149.88,149.82,6.67451153]
[1746673308742,24.23220097,149.88,149.83,17.56013683]
[1746673309248,24.23220097,149.88,149.84,17.56013683]
[1746673309426,31.69348374,149.89,149.84,17.56013683]
[1746673309623,49.25362057,149.89,149.85,17.56013683]
[1746673310149,17.56013683,149.88,149.84,17.56013683]
[1746673310344,17.56013683,149.88,149.83,17.56013683]
[1746673310651,17.56013683,149.87,149.81,32.67500968]
[1746673310852,17.56013683,149.87,149.82,17.56013683]
[1746673311348,17.56013683,149.87,149.83,17.56013683]
[1746673311548,17.56013683,149.86,149.82,17.56013683]
[1746673311749,17.56013683,149.85,149.81,43.56013683]
[1746673312049,17.56013683,149.85,149.81,26.0]
[1746673312856,17.56013683,149.85,149.81,17.56013683]
[1746673313042,17.56013683,149.85,149.81,24.23519383]
[1746673314066,0.14216157,149.88,149.82,17.56013683]
[1746673314251,17.56013683,149.87,149.82,17.56013683]
[1746673314453,17.56013683,149.86,149.82,17.56013683]
[1746673314758,17.56013683,149.86,149.81,24.23519383]
[1746673314947,24.23320089,149.86,149.81,24.23519383]
[1746673315554,6.67248068,149.87,149.82,17.56013683]
[1746673315859,17.56013683,149.87,149.83,17.56013683]
[1746673316041,24.23225805,149.88,149.84,17.56013683]
[1746673316361,24.23225805,149.88,149.83,17.56013683]
[1746673316534,17.56013683,149.88,149.83,17.56013683]
[1746673317036,17.56013683,149.88,149.83,24.2341836]
[1746673317657,17.56013683,149.87,149.79,16.68893677]
[1746673317949,6.67203527,149.88,149.82,17.56013683]
[1746673318259,17.56013683,149.87,149.83,17.56013683]
[1746673318442,17.56013683,149.87,149.82,17.56013683]
[1746673318862,17.56013683,149.87,149.82,24.23445532]
[1746673319362,17.56013683,149.87,149.83,17.56013683]
[1746673320045,17.56013683,149.87,149.82,24.23445532]
[1746673321440,17.56013683,149.86,149.82,6.67431849]
[1746673321645,17.56013683,149.86,149.82,24.23445532]
[1746673321847,17.56013683,149.86,149.82,6.67431849]
[1746673322342,17.56013683,149.86,149.82,24.23445532]
[1746673322533,17.56013683,149.87,149.82,24.23445532]
[1746673323062,17.56013683,149.87,149.83,17.56013683]
[1746673323264,17.56013683,149.87,149.83,24.23430102]
[1746673324363,25.02174794,149.89,149.83,24.23430102]
[1746673324568,25.02174794,149.89,149.85,17.56013683]
[1746673324865,42.58188477,149.89,149.83,6.67416419]
[1746673325039,42.58188477,149.89,149.84,17.56013683]
[1746673325550,42.58188477,149.89,149.84,24.23351277]
[1746673325863,25.02174794,149.89,149.84,24.23351277]
[1746673326043,25.02174794,149.89,149.85,17.56013683]
[1746673326244,49.25356617,149.89,149.84,24.23351277]
[1746673326444,17.56013683,149.86,149.81,17.56013683]
[1746673327463,17.56013683,149.85,149.81,6.67497379]
[1746673328834,17.56013683,149.85,149.8,17.56013683]
[1746673329039,17.56013683,149.85,149.8,24.2355258]
[1746673329258,24.23353841,149.85,149.8,24.2355258]
[1746673329436,17.56013683,149.84,149.8,17.56013683]
[1746673330144,17.56013683,149.84,149.78,23.1362829]
[1746673330350,17.56013683,149.83,149.79,17.56013683]
[1746673330555,17.56013683,149.83,149.77,1.5041]
[1746673330846,17.56013683,149.82,149.77,17.56013683]
[1746673331035,17.56013683,149.82,149.78,17.56013683]
[1746673331664,18.64964886,149.82,149.76,32.67718971]
[1746673331854,36.20978569,149.82,149.76,32.67718971]
[1746673332054,18.64964886,149.82,149.78,17.56013683]
[1746673332653,36.20978569,149.82,149.78,17.56013683]
[1746673333265,42.88464373,149.82,149.77,17.56013683]
[1746673333468,17.56013683,149.81,149.77,17.56013683]
[1746673334271,24.23545241,149.81,149.75,6.67779632]
[1746673334445,17.56013683,149.79,149.74,32.67809441]
[1746673334762,17.56013683,149.79,149.74,50.23823124]
[1746673334954,36.20978569,149.8,149.75,17.56013683]
[1746673335161,17.56013683,149.79,149.75,17.56013683]
[1746673335456,17.56013683,149.79,149.74,50.23823124]
[1746673336147,17.56013683,149.79,149.74,24.23823124]
[1746673336473,36.20978569,149.8,149.76,17.56013683]
[1746673336969,36.20978569,149.8,149.75,17.56013683]
[1746673338480,43.02759161,149.8,149.72,6.67913438]
[1746673338774,43.6713968,149.79,149.73,17.56013683]
[1746673338943,18.64964886,149.77,149.73,17.56013683]
[1746673339556,18.64964886,149.77,149.74,24.23837911]
[1746673339978,36.20978569,149.77,149.7,6.68002672]
[1746673340179,36.20978569,149.77,149.73,17.56013683]
[1746673341246,36.20978569,149.77,149.7,6.68002672]
[1746673341247,25.32664868,149.77,149.7,6.68002672]
[1746673341446,17.56013683,149.76,149.7,6.68002672]
[1746673341669,24.23752878,149.76,149.7,6.68002672]
[1746673341878,17.56013683,149.74,149.7,6.68002672]
[1746673342173,36.20978569,149.76,149.7,6.68002672]
[1746673342378,17.56013683,149.75,149.7,6.68002672]
[1746673342797,17.56013683,149.75,149.71,17.56013683]
[1746673343085,17.56013683,149.75,149.7,6.68002672]
[1746673343290,24.23797917,149.75,149.71,17.56013683]
[1746673343782,24.23797917,149.75,149.7,24.24016355]
[1746673343783,17.56013683,149.74,149.7,24.24016355]
[1746673343986,24.23797917,149.75,149.71,17.56013683]
[1746673344168,17.56013683,149.75,149.71,17.56013683]
[1746673344367,24.23795212,149.75,149.7,6.68002672]
[1746673344565,24.23795212,149.75,149.71,17.56013683]
[1746673345079,17.56013683,149.74,149.7,17.56013683]
[1746673345589,24.23844241,149.74,149.7,17.56013683]
[1746673346111,6.67793951,149.75,149.71,17.56013683]
[1746673346273,6.67793951,149.75,149.68,6.68091929]
[1746673346274,18.64964886,149.74,149.7,17.56013683]
[1746673346574,25.02174794,149.75,149.71,17.56013683]
[1746673346783,25.02174794,149.75,149.73,17.56013683]
[1746673346976,25.02174794,149.75,149.72,17.56013683]
[1746673348161,25.02174794,149.75,149.74,17.56013683]
[1746673348351,6.67586398,149.8,149.74,17.56013683]
[1746673348559,24.23600081,149.8,149.76,17.56013683]
[1746673348862,24.23600081,149.8,149.75,17.56013683]
[1746673349081,6.67586398,149.8,149.75,17.56013683]
[1746673349477,24.23600081,149.8,149.75,24.23784065]
[1746673349683,6.67586398,149.8,149.75,24.23784065]
[1746673349879,36.20978569,149.8,149.76,17.56013683]
[1746673350086,36.20978569,149.8,149.75,24.23784065]
[1746673351185,42.88542766,149.8,149.75,24.23784065]
[1746673351385,17.56013683,149.79,149.73,6.6786883]
[1746673351697,25.02174794,149.8,149.77,17.56013683]
[1746673351898,25.02174794,149.8,149.73,24.23882513]
[1746673352090,20.24844886,149.81,149.77,17.56013683]
[1746673352390,18.64964886,149.82,149.79,17.56013683]
[1746673352896,18.64964886,149.82,149.78,17.56013683]
[1746673353398,18.64964886,149.82,149.75,6.67779632]
[1746673353573,18.64964886,149.82,149.78,17.56013683]
[1746673353775,18.64964886,149.82,149.79,17.56013683]
[1746673354385,18.64964886,149.82,149.75,6.67779632]
[1746673354586,18.64964886,149.82,149.78,24.23656816]
[1746673355373,36.20978569,149.82,149.78,24.23656816]
[1746673355903,18.64964886,149.82,149.78,24.23656816]
[1746673356278,18.64964886,149.82,149.79,17.56013683]
[1746673357600,36.20978569,149.82,149.78,24.23656816]
[1746673358607,36.20978569,149.82,149.78,17.56013683]
[1746673359715,29.63826642,149.82,149.78,10.98861756]
[1746673361002,18.64964886,149.82,149.78,10.98861756]
[1746673362112,18.64964886,149.82,149.78,17.6649958]
[1746673363010,29.63826642,149.82,149.78,17.6649958]
[1746673363503,18.64964886,149.82,149.78,17.6649958]
[1746673364900,29.63826642,149.82,149.75,6.67779632]
[1746673365106,10.98861756,149.81,149.77,10.98861756]
[1746673365606,29.63826642,149.82,149.77,10.98861756]
[1746673365811,18.64964886,149.82,149.78,10.98861756]
[1746673366003,29.63826642,149.82,149.78,10.98861756]
[1746673366688,36.3130158,149.82,149.78,10.98861756]
[1746673367005,36.3130158,149.82,149.77,17.66544131]
[1746673367205,36.3130158,149.82,149.78,10.98861756]
[1746673368006,10.98861756,149.81,149.75,6.67779632]
[1746673368213,10.98861756,149.81,149.76,10.98861756]
[1746673368397,25.32439824,149.82,149.76,10.98861756]
[1746673368708,10.98861756,149.81,149.76,10.98861756]
[1746673369082,10.98861756,149.81,149.77,6.67690458]
[1746673369287,10.98861756,149.81,149.76,10.98861756]
[1746673369715,10.98861756,149.81,149.76,17.6658195]
[1746673370509,10.98861756,149.8,149.76,17.6658195]
[1746673371615,17.66420237,149.8,149.75,17.66628067]
[1746673371918,25.32468266,149.82,149.77,10.98861756]
[1746673372104,18.64964886,149.8,149.77,10.98861756]
[1746673372294,6.6750338,149.82,149.77,10.98861756]
[1746673372495,29.63826642,149.81,149.77,10.98861756]
[1746673372694,31.696108,149.83,149.78,10.98861756]
[1746673373003,25.02174794,149.83,149.8,10.98861756]
[1746673374792,10.98861756,149.81,149.77,6.67679284]
[1746673375107,10.98861756,149.81,149.76,17.66580524]
[1746673375414,10.98861756,149.79,149.74,43.66669929]
[1746673375801,10.98861756,149.79,149.75,10.98861756]
[1746673376792,10.98861756,149.79,149.75,17.66636902]
[1746673377719,10.98861756,149.8,149.75,17.66636902]
[1746673378398,6.67561732,149.8,149.75,17.66636902]
[1746673378598,29.63826642,149.8,149.76,10.98861756]
[1746673379016,29.63826642,149.8,149.75,6.67775146]
[1746673379191,36.31389354,149.8,149.73,6.6786883]
[1746673379397,36.31389354,149.8,149.75,10.98861756]
[1746673379596,10.98861756,149.78,149.74,10.98861756]
[1746673380001,10.98861756,149.79,149.75,10.98861756]
[1746673380325,10.98861756,149.79,149.75,17.66623961]
[1746673380926,29.63826642,149.8,149.76,10.98861756]
[1746673381425,25.02174794,149.81,149.77,10.98861756]
[1746673381597,18.64964886,149.83,149.79,10.98861756]
[1746673381802,25.02174794,149.84,149.81,10.98861756]
[1746673382599,25.02174794,149.84,149.81,17.66360682]
[1746673383504,25.02174794,149.84,149.82,10.98861756]
[1746673383817,10.98861756,149.86,149.82,10.98861756]
[1746673384022,18.64964886,149.86,149.82,10.98861756]
[1746673384411,18.64964886,149.86,149.82,17.66325307]
[1746673384725,36.31123229,149.86,149.82,10.98861756]
[1746673385195,36.31123229,149.86,149.81,17.66356549]
[1746673385402,10.98861756,149.85,149.81,17.66356549]
[1746673385712,10.98861756,149.85,149.81,10.98861756]
[1746673385906,10.98861756,149.85,149.81,17.66370746]
[1746673386831,10.98861756,149.85,149.81,6.6750899]
[1746673387018,10.98861756,149.85,149.8,17.66401937]
[1746673387624,10.98861756,149.85,149.81,10.98861756]
[1746673387927,10.98861756,149.85,149.78,6.6764588]
[1746673387928,10.98861756,149.83,149.78,6.6764588]
[1746673388131,10.98861756,149.83,149.78,17.66507636]
[1746673388324,10.98861756,149.83,149.79,10.98861756]
[1746673388636,10.98861756,149.82,149.78,10.98861756]
[1746673389009,29.63826642,149.81,149.76,10.98861756]
[1746673389217,10.98861756,149.8,149.76,10.98861756]
[1746673389715,10.98861756,149.79,149.74,17.66677414]
[1746673390231,10.98861756,149.8,149.75,10.98861756]
[1746673390403,10.98861756,149.8,149.76,10.98861756]
[1746673391030,10.98861756,149.8,149.75,10.98861756]
[1746673392229,43.6713968,149.81,149.77,10.98861756]
[1746673392425,46.05826642,149.83,149.78,10.98861756]
[1746673392628,29.63826642,149.82,149.78,10.98861756]
[1746673392929,10.98861756,149.82,149.78,10.98861756]
[1746673393109,29.63826642,149.83,149.79,10.98861756]
[1746673393308,29.63826642,149.83,149.78,10.98861756]
[1746673393508,10.98861756,149.81,149.77,17.66539994]
[1746673393818,10.98861756,149.81,149.77,10.98861756]
[1746673395212,10.98861756,149.81,149.76,17.66580124]
[1746673395526,10.98861756,149.81,149.76,6.67718368]
[1746673395730,17.66341365,149.82,149.77,10.98861756]
[1746673395925,29.63826642,149.83,149.79,10.98861756]
[1746673396327,18.64964886,149.83,149.79,10.98861756]
[1746673396632,36.31256382,149.83,149.79,10.98861756]
[1746673397414,36.31256382,149.83,149.78,17.6648683]
[1746673398033,29.63826642,149.83,149.78,17.6648683]
[1746673398532,37.6322655,149.84,149.8,10.98861756]
[1746673398721,25.02174794,149.84,149.8,10.98861756]
[1746673399222,36.0103655,149.84,149.8,10.98861756]
[1746673399420,36.0103655,149.84,149.8,17.66411381]
[1746673399620,36.0103655,149.84,149.76,16.69315334]
[1746673399621,42.68421211,149.84,149.79,17.66448239]
[1746673400333,29.63826642,149.83,149.78,10.98861756]
[1746673402034,36.0103655,149.84,149.79,10.98861756]
[1746673402216,36.0103655,149.84,149.8,10.98861756]
[1746673402636,42.68418976,149.84,149.8,10.98861756]
[1746673402934,42.68418976,149.84,149.79,10.98861756]
[1746673403135,10.98861756,149.83,149.79,10.98861756]
[1746673403616,17.66315287,149.83,149.78,17.66490073]
[1746673403815,10.98861756,149.82,149.75,16.69395531]
[1746673404119,10.98861756,149.82,149.78,10.98861756]
[1746673404835,18.64964886,149.82,149.78,10.98861756]
[1746673405235,6.67453531,149.83,149.79,10.98861756]
[1746673405728,17.66315287,149.83,149.78,10.98861756]
[1746673406036,18.64964886,149.83,149.8,10.98861756]
[1746673406534,18.64964886,149.83,149.79,10.98861756]
[1746673406736,29.63826642,149.83,149.79,10.98861756]
[1746673407036,36.3125509,149.83,149.79,10.98861756]
[1746673407537,25.32393334,149.83,149.79,10.98861756]
[1746673407736,36.3125509,149.83,149.79,10.98861756]
[1746673408536,36.3125509,149.83,149.75,16.69395531]
[1746673408537,10.98861756,149.81,149.74,6.67824228]
[1746673408740,10.98861756,149.8,149.75,10.98861756]
[1746673408918,25.02174794,149.82,149.78,10.98861756]
[1746673409520,36.0103655,149.82,149.77,10.98861756]
[1746673410135,25.02174794,149.82,149.77,10.98861756]
[1746673410435,25.02174794,149.82,149.78,10.98861756]
[1746673410641,25.02174794,149.82,149.79,17.66463064]
[1746673410943,25.02174794,149.82,149.79,6.67601308]
[1746673411322,25.02174794,149.82,149.78,17.66495011]
[1746673413437,25.02174794,149.82,149.8,10.98861756]
[1746673413836,25.02174794,149.82,149.81,10.98861756]
[1746673414136,29.63826642,149.86,149.81,10.98861756]
[1746673414343,25.32264442,149.86,149.81,10.98861756]
[1746673414518,36.31126198,149.86,149.81,10.98861756]
[1746673416841,36.31126198,149.86,149.81,17.6636216]
[1746673417035,10.98861756,149.85,149.81,10.98861756]
[1746673417839,25.32264442,149.86,149.81,10.98861756]
[1746673418046,10.98861756,149.85,149.81,10.98861756]
[1746673418547,36.31126198,149.86,149.81,10.98861756]
[1746673418743,25.32264442,149.86,149.81,10.98861756]
[1746673418928,36.31126198,149.86,149.81,17.66368628]
[1746673419846,29.63826642,149.86,149.82,10.98861756]
[1746673420149,42.68298678,149.87,149.83,10.98861756]
[1746673420341,42.68298678,149.87,149.82,10.98861756]
[1746673420543,31.69436922,149.87,149.82,10.98861756]
[1746673420846,10.98861756,149.86,149.81,17.66368628]
[1746673421032,10.98861756,149.86,149.82,10.98861756]
[1746673421425,42.68298678,149.87,149.82,10.98861756]
[1746673421625,25.02174794,149.87,149.84,10.98861756]
[1746673421825,17.66032426,149.89,149.84,10.98861756]
[1746673422025,10.98861756,149.88,149.84,10.98861756]
[1746673422245,6.6717067,149.89,149.83,10.98861756]
[1746673422449,10.98861756,149.88,149.83,10.98861756]
[1746673422651,10.98861756,149.88,149.83,17.66246499]
[1746673423030,10.98861756,149.88,149.84,10.98861756]
[1746673423631,10.98861756,149.88,149.83,17.66246499]
[1746673423835,10.98861756,149.88,149.84,10.98861756]
[1746673424035,17.66032426,149.89,149.84,10.98861756]
[1746673424229,42.68165278,149.9,149.86,10.98861756]
[1746673424434,36.0103655,149.9,149.86,10.98861756]
[1746673425755,25.02174794,149.9,149.86,10.98861756]
[1746673426051,36.0103655,149.9,149.86,17.66150819]
[1746673426352,36.0103655,149.9,149.86,6.67289063]
[1746673426645,25.02174794,149.9,149.86,17.66150819]
[1746673426848,32.66990613,149.93,149.88,10.98861756]
[1746673427452,43.65852369,149.93,149.88,10.98861756]
[1746673427656,10.98861756,149.92,149.88,10.98861756]
[1746673428354,32.66990613,149.93,149.88,10.98861756]
[1746673428549,10.98861756,149.92,149.88,10.98861756]
[1746673428861,43.65852369,149.93,149.88,10.98861756]
[1746673429765,31.69117228,149.94,149.89,10.98861756]
[1746673429936,25.02174794,149.94,149.92,10.98861756]
[1746673430138,12.65011756,149.96,149.91,10.98861756]
[1746673430339,41.42174794,149.97,149.93,10.98861756]
[1746673430558,36.0103655,149.97,149.93,10.98861756]
[1746673430964,25.02174794,149.97,149.94,10.98861756]
[1746673431138,25.02174794,149.97,149.95,10.98861756]
[1746673431541,25.02174794,149.97,149.9,1.5865]
[1746673431753,6.66756689,149.98,149.94,10.98861756]
[1746673431954,17.65578954,149.99,149.95,10.98861756]
[1746673433063,6.66717198,149.99,149.95,10.98861756]
[1746673433266,17.65578954,149.99,149.95,10.98861756]
[1746673433436,17.65578954,149.99,149.94,10.98861756]
[1746673434355,17.65578954,149.99,149.95,10.98861756]
[1746673436246,10.98861756,149.98,149.94,10.98861756]
[1746673436563,31.68854031,150.0,149.96,10.98861756]
[1746673436866,42.67715787,150.0,149.96,10.98861756]
[1746673437072,10.98861756,149.99,149.95,10.98861756]
[1746673437250,42.67715787,150.0,149.95,10.98861756]
[1746673438568,42.67715787,150.0,149.93,6.66949063]
[1746673438748,42.67715787,150.0,149.95,10.98861756]
[1746673439176,10.98861756,149.99,149.91,32.67027967]
[1746673439343,10.98861756,149.98,149.94,10.98861756]
[1746673440271,6.66788058,149.98,149.94,10.98861756]
[1746673440567,17.65649814,149.98,149.94,10.98861756]
[1746673441168,10.98861756,149.95,149.89,12.72170682]
[1746673441350,10.98861756,149.94,149.9,10.98861756]
[1746673441841,25.02174794,149.97,149.89,32.67140682]
[1746673442045,25.02174794,149.97,149.93,10.98861756]
[1746673442240,42.6787393,149.97,149.93,10.98861756]
[1746673442440,42.6787393,149.97,149.92,10.98861756]
[1746673442441,10.98861756,149.96,149.92,10.98861756]
[1746673442760,10.98861756,149.95,149.91,10.98861756]
[1746673443149,10.98861756,149.96,149.91,10.98861756]
[1746673443348,42.6787393,149.97,149.92,10.98861756]
[1746673443543,42.6787393,149.97,149.93,10.98861756]
[1746673443738,25.02174794,149.97,149.93,10.98861756]
[1746673443943,25.02174794,149.97,149.94,10.98861756]
[1746673444146,25.02174794,149.97,149.95,10.98861756]
[1746673445267,17.65583653,149.99,149.95,10.98861756]
[1746673445858,17.65583653,149.99,149.94,10.98861756]
[1746673446551,10.98861756,149.98,149.94,10.98861756]
[1746673447368,17.65620706,149.98,149.94,10.98861756]
[1746673447749,6.66727658,149.99,149.94,10.98861756]
[1746673447948,10.98861756,149.98,149.94,10.98861756]
[1746673448170,17.65589414,149.99,149.95,10.98861756]
[1746673448350,17.65589414,149.99,149.93,6.66972067]
[1746673448351,17.65589414,149.99,149.94,10.98861756]
[1746673448553,6.66727658,149.99,149.95,10.98861756]
[1746673449273,17.65589414,149.99,149.95,10.98861756]
[1746673449868,17.65589414,149.99,149.93,6.66972067]
[1746673450047,17.65589414,149.99,149.94,10.98861756]
[1746673450248,10.98861756,149.98,149.94,10.98861756]
[1746673450547,17.65589414,149.99,149.94,10.98861756]
[1746673450846,17.65652813,149.98,149.94,10.98861756]
[1746673451869,10.98861756,149.96,149.92,10.98861756]
[1746673452054,10.98861756,149.94,149.9,10.98861756]
[1746673452261,10.98861756,149.92,149.87,12.52451756]
[1746673452875,10.98861756,149.92,149.88,10.98861756]
[1746673453653,17.65865892,149.93,149.88,10.98861756]
[1746673453853,17.65865892,149.93,149.89,10.98861756]
[1746673454269,17.65865892,149.93,149.87,8.20825044]
[1746673454578,17.65865892,149.93,149.88,10.98861756]
[1746673455072,6.66901487,149.95,149.91,10.98861756]
[1746673455270,17.65763243,149.95,149.91,10.98861756]
[1746673455659,10.98861756,149.94,149.9,10.98861756]
[1746673456785,36.0103655,149.96,149.92,10.98861756]
[1746673456960,25.02174794,149.96,149.92,10.98861756]
[1746673457355,10.98861756,149.99,149.94,10.98861756]
[1746673457573,51.02174794,150.0,149.95,10.98861756]
[1746673457766,10.98861756,149.99,149.95,10.98861756]
[1746673458265,10.98861756,149.98,149.94,10.98861756]
[1746673458780,6.66742566,149.99,149.94,10.98861756]
[1746673458977,10.98861756,149.98,149.94,10.98861756]
[1746673461378,57.68855175,150.0,149.96,10.98861756]
[1746673461567,42.67716931,150.0,149.96,10.98861756]
[1746673463907,10.98861756,149.97,149.89,149.4778533]
[1746673464187,10.98861756,149.95,149.89,6.67155914]
[1746673464477,10.98861756,149.96,149.91,10.98861756]
[1746673464860,25.02174794,149.97,149.91,10.98861756]
[1746673465078,10.98861756,149.96,149.91,10.98861756]
[1746673465378,17.65722709,149.96,149.91,10.98861756]
[1746673466378,17.65722709,149.96,149.91,17.65923785]
[1746673467857,17.65722709,149.96,149.92,10.98861756]
[1746673468060,42.67853993,149.97,149.92,10.98861756]
[1746673468981,25.02174794,149.97,149.94,10.98861756]
[1746673469659,25.02174794,149.97,149.95,10.98861756]
[1746673469960,10.98861756,149.99,149.95,10.98861756]
[1746673471086,10.98861756,149.99,149.94,10.98861756]
[1746673471087,10.98861756,149.98,149.94,10.98861756]
[1746673471784,17.65637361,149.98,149.94,10.98861756]
[1746673471983,6.66775605,149.98,149.94,10.98861756]
[1746673472292,6.66726818,149.99,149.95,10.98861756]
[1746673472472,68.67711539,150.0,149.96,10.98861756]
[1746673472667,10.98861756,149.99,149.95,10.98861756]
[1746673473169,68.67711539,150.0,149.95,10.98861756]
[1746673474374,57.68849783,150.0,149.96,10.98861756]
[1746673474787,68.67711539,150.0,149.96,10.98861756]
[1746673475984,42.67711539,150.0,149.96,10.98861756]